[Event "*** SCC Grand Prix: Titled Tuesday Blitz"]
[Site "Chess.com"]
[Date "2020.09.29"]
[Round "6"]
[White "A-Fier"]
[Black "Reader777"]
[Result "0-1"]
[WhiteElo "2832"]
[BlackElo "2655"]
[TimeControl "180+1"]
[EndTime "11:06:14 PDT"]
[Termination "Reader777 won by checkmate"]

1. c4 {[%clk 0:03:00.9]} 1... e5 {[%clk 0:02:59.3]} 2. Nc3 {[%clk 0:03:00.6]}
2... Nf6 {[%clk 0:02:59.5]} 3. Nf3 {[%clk 0:03:00.6]} 3... Nc6 {[%clk
0:02:58.8]} 4. d3 {[%clk 0:03:00.6]} 4... d6 {[%clk 0:02:57.7]} 5. e3 {[%clk
0:02:58.5]} 5... g6 {[%clk 0:02:56.9]} 6. Be2 {[%clk 0:02:59]} 6... Bg7 {[%clk
0:02:56.9]} 7. O-O {[%clk 0:02:59.6]} 7... O-O {[%clk 0:02:57.5]} 8. Rb1 {[%clk
0:03:00.1]} 8... a5 {[%clk 0:02:56.6]} 9. a3 {[%clk 0:03:00.2]} 9... Re8 {[%clk
0:02:56]} 10. Nd2 {[%clk 0:02:59.9]} 10... Be6 {[%clk 0:02:46.2]} 11. b4 {[%clk
0:02:54.6]} 11... axb4 {[%clk 0:02:46]} 12. axb4 {[%clk 0:02:55.5]} 12... d5
{[%clk 0:02:45.8]} 13. cxd5 {[%clk 0:02:51.7]} 13... Nxd5 {[%clk 0:02:45]} 14.
Nxd5 {[%clk 0:02:52.1]} 14... Bxd5 {[%clk 0:02:44.7]} 15. b5 {[%clk 0:02:52.5]}
15... Na5 {[%clk 0:02:38.6]} 16. Qc2 {[%clk 0:02:51.3]} 16... Qd7 {[%clk
0:02:30.9]} 17. Bb2 {[%clk 0:02:48.6]} 17... c6 {[%clk 0:02:27.6]} 18. b6 {[%clk
0:02:46.1]} 18... Rec8 {[%clk 0:02:14.4]} 19. Bc3 {[%clk 0:02:45.6]} 19... c5
{[%clk 0:02:12.8]} 20. Bxa5 {[%clk 0:02:38.6]} 20... Rxa5 {[%clk 0:02:12.2]} 21.
Nc4 {[%clk 0:02:39.2]} 21... Ra6 {[%clk 0:02:09.5]} 22. Bf3 {[%clk 0:02:24.3]}
22... Bxf3 {[%clk 0:01:46]} 23. gxf3 {[%clk 0:02:25.2]} 23... Rd8 {[%clk
0:01:45.4]} 24. Rfd1 {[%clk 0:02:21]} 24... Qh3 {[%clk 0:01:41.5]} 25. Qe2
{[%clk 0:02:20.4]} 25... Rda8 {[%clk 0:01:38]} 26. Rd2 {[%clk 0:02:09.4]} 26...
Ra1 {[%clk 0:01:36.5]} 27. Rbd1 {[%clk 0:02:08.9]} 27... h5 {[%clk 0:01:27.7]}
28. Nd6 {[%clk 0:02:03]} 28... Qe6 {[%clk 0:01:26.2]} 29. Nc4 {[%clk 0:01:59.8]}
29... Qh3 {[%clk 0:01:25.1]} 30. Rxa1 {[%clk 0:01:52.8]} 30... Rxa1+ {[%clk
0:01:24.2]} 31. Rd1 {[%clk 0:01:53.7]} 31... Ra6 {[%clk 0:01:22]} 32. Rb1 {[%clk
0:01:48.6]} 32... h4 {[%clk 0:01:18.9]} 33. Nd6 {[%clk 0:01:45.7]} 33... Qe6
{[%clk 0:01:17.2]} 34. Nc4 {[%clk 0:01:41.2]} 34... h3 {[%clk 0:01:07.3]} 35.
Kf1 {[%clk 0:01:37.9]} 35... Qf5 {[%clk 0:01:05.5]} 36. e4 {[%clk 0:01:23.7]}
36... Qf4 {[%clk 0:01:03.2]} 37. Qc2 {[%clk 0:01:02.9]} 37... Qxh2 {[%clk
0:01:02.2]} 38. Ke2 {[%clk 0:01:02.1]} 38... Qf4 {[%clk 0:00:56.1]} 39. Ne3
{[%clk 0:00:44.7]} 39... h2 {[%clk 0:00:50.7]} 40. Nd5 {[%clk 0:00:45.1]} 40...
Qg5 {[%clk 0:00:48.4]} 41. Rh1 {[%clk 0:00:04.9]} 41... Qg1 {[%clk 0:00:47.4]}
42. Qb1 {[%clk 0:00:05.3]} 42... Ra2+ {[%clk 0:00:40.1]} 43. Qxa2 {[%clk
0:00:05.5]} 43... Qxh1 {[%clk 0:00:40.2]} 44. Qa8+ {[%clk 0:00:06.2]} 44... Kh7
{[%clk 0:00:33.4]} 45. Qxb7 {[%clk 0:00:06.7]} 45... Qg2 {[%clk 0:00:24.5]} 46.
Qxf7 {[%clk 0:00:06.5]} 46... h1=Q {[%clk 0:00:24.4]} 47. Nf6+ {[%clk
0:00:01.2]} 47... Kh6 {[%clk 0:00:24.6]} 48. Ng4+ {[%clk 0:00:01.9]} 48... Kh5
{[%clk 0:00:21.9]} 49. Ne3 {[%clk 0:00:02.5]} 49... Qgg1 {[%clk 0:00:19.2]} 50.
f4 {[%clk 0:00:01.1]} 50... Qe1# {[%clk 0:00:17.9]} 0-1

[Event "*** SCC Grand Prix: Titled Tuesday Blitz"]
[Site "Chess.com"]
[Date "2020.09.29"]
[Round "6"]
[White "csati17"]
[Black "Gulkov_Igor"]
[Result "1-0"]
[WhiteElo "2584"]
[BlackElo "2435"]
[TimeControl "180+1"]
[EndTime "11:06:21 PDT"]
[Termination "csati17 won on time"]

1. c4 {[%clk 0:03:00.9]} 1... Nf6 {[%clk 0:02:59.4]} 2. Nc3 {[%clk 0:03:01]}
2... e5 {[%clk 0:02:59.4]} 3. g3 {[%clk 0:03:00]} 3... Bb4 {[%clk 0:02:58.4]} 4.
Bg2 {[%clk 0:02:59.3]} 4... O-O {[%clk 0:02:57.6]} 5. Nf3 {[%clk 0:02:55.7]}
5... Bxc3 {[%clk 0:02:53.5]} 6. dxc3 {[%clk 0:02:55.7]} 6... Nc6 {[%clk
0:02:53.4]} 7. O-O {[%clk 0:02:49.3]} 7... d6 {[%clk 0:02:52.7]} 8. Qc2 {[%clk
0:02:31.1]} 8... Qe7 {[%clk 0:02:50.8]} 9. e4 {[%clk 0:02:07.4]} 9... h6 {[%clk
0:02:44.8]} 10. Re1 {[%clk 0:01:56.5]} 10... Be6 {[%clk 0:02:27]} 11. b3 {[%clk
0:01:54.4]} 11... a5 {[%clk 0:02:26.6]} 12. a4 {[%clk 0:01:50.8]} 12... Nd7
{[%clk 0:02:26.1]} 13. Nh4 {[%clk 0:01:40.2]} 13... Qf6 {[%clk 0:02:23.4]} 14.
Be3 {[%clk 0:01:10.9]} 14... Nc5 {[%clk 0:01:58.1]} 15. Bxc5 {[%clk 0:01:10.7]}
15... dxc5 {[%clk 0:01:57.3]} 16. Nf5 {[%clk 0:01:08.3]} 16... Nd8 {[%clk
0:01:32.5]} 17. Rad1 {[%clk 0:01:00.2]} 17... g6 {[%clk 0:01:23.9]} 18. Ne3
{[%clk 0:00:59.2]} 18... c6 {[%clk 0:01:23.3]} 19. Qd2 {[%clk 0:00:50.2]} 19...
Re8 {[%clk 0:01:21.6]} 20. Qd6 {[%clk 0:00:48]} 20... Kg7 {[%clk 0:01:17.1]} 21.
Qxc5 {[%clk 0:00:44.2]} 21... h5 {[%clk 0:01:16.1]} 22. Rf1 {[%clk 0:00:31.6]}
22... Qe7 {[%clk 0:01:14.6]} 23. Qxe5+ {[%clk 0:00:31]} 23... f6 {[%clk
0:00:46.5]} 24. Qd6 {[%clk 0:00:25.2]} 24... Qxd6 {[%clk 0:00:37.4]} 25. Rxd6
{[%clk 0:00:26.1]} 25... Kf7 {[%clk 0:00:37.5]} 26. f4 {[%clk 0:00:20.6]} 26...
Ke7 {[%clk 0:00:37.2]} 27. Rd2 {[%clk 0:00:20.4]} 27... Nf7 {[%clk 0:00:36.9]}
28. Nc2 {[%clk 0:00:16.2]} 28... Red8 {[%clk 0:00:35.9]} 29. Rxd8 {[%clk
0:00:14.9]} 29... Rxd8 {[%clk 0:00:35]} 30. Nd4 {[%clk 0:00:07.7]} 30... c5
{[%clk 0:00:34.8]} 31. Nxe6 {[%clk 0:00:07.4]} 31... Kxe6 {[%clk 0:00:35.3]} 32.
f5+ {[%clk 0:00:08.3]} 32... gxf5 {[%clk 0:00:35.2]} 33. exf5+ {[%clk
0:00:09.2]} 33... Ke7 {[%clk 0:00:32.8]} 34. Bd5 {[%clk 0:00:10.1]} 34... Ne5
{[%clk 0:00:32.4]} 35. Kg2 {[%clk 0:00:09.1]} 35... b6 {[%clk 0:00:32.7]} 36.
Rf4 {[%clk 0:00:09.1]} 36... Rh8 {[%clk 0:00:32.4]} 37. Rh4 {[%clk 0:00:09.1]}
37... Nd3 {[%clk 0:00:25.8]} 38. Kf3 {[%clk 0:00:07.4]} 38... Ne5+ {[%clk
0:00:23.9]} 39. Kf4 {[%clk 0:00:07]} 39... Kf8 {[%clk 0:00:20.5]} 40. h3 {[%clk
0:00:07]} 40... Kg7 {[%clk 0:00:20.3]} 41. g4 {[%clk 0:00:06.9]} 41... hxg4
{[%clk 0:00:18.6]} 42. Rxh8 {[%clk 0:00:07.8]} 42... Kxh8 {[%clk 0:00:18.6]} 43.
hxg4 {[%clk 0:00:08.3]} 43... Kg7 {[%clk 0:00:18.7]} 44. g5 {[%clk 0:00:08.2]}
44... Nd3+ {[%clk 0:00:18.5]} 45. Kg4 {[%clk 0:00:08.6]} 45... Ne5+ {[%clk
0:00:18.9]} 46. Kh5 {[%clk 0:00:08.6]} 46... Nd3 {[%clk 0:00:19]} 47. Be6 {[%clk
0:00:06.6]} 47... Ne5 {[%clk 0:00:18.9]} 48. g6 {[%clk 0:00:06.6]} 48... Nf3
{[%clk 0:00:12]} 49. Kg4 {[%clk 0:00:06.6]} 49... Nd2 {[%clk 0:00:11.9]} 50. Kf4
{[%clk 0:00:06.1]} 50... Nxb3 {[%clk 0:00:11.5]} 51. Ke4 {[%clk 0:00:05.9]} 1-0

[Event "*** SCC Grand Prix: Titled Tuesday Blitz"]
[Site "Chess.com"]
[Date "2020.09.29"]
[Round "6"]
[White "CM_rui"]
[Black "monalize"]
[Result "1-0"]
[WhiteElo "2398"]
[BlackElo "2293"]
[TimeControl "180+1"]
[EndTime "11:06:21 PDT"]
[Termination "CM_rui won on time"]

1. e4 {[%clk 0:03:00.9]} 1... c5 {[%clk 0:02:57.5]} 2. Nf3 {[%clk 0:03:00.6]}
2... d6 {[%clk 0:02:57.5]} 3. d4 {[%clk 0:02:59.5]} 3... cxd4 {[%clk 0:02:58.4]}
4. Nxd4 {[%clk 0:03:00.2]} 4... Nf6 {[%clk 0:02:58.1]} 5. f3 {[%clk 0:03:00.6]}
5... a6 {[%clk 0:02:55.9]} 6. c4 {[%clk 0:02:59.4]} 6... b6 {[%clk 0:02:51.5]}
7. Nc3 {[%clk 0:02:59.4]} 7... Bb7 {[%clk 0:02:51.5]} 8. Be3 {[%clk 0:03:00]}
8... e6 {[%clk 0:02:47.3]} 9. Be2 {[%clk 0:03:00.2]} 9... Be7 {[%clk 0:02:47.3]}
10. O-O {[%clk 0:03:00.2]} 10... O-O {[%clk 0:02:46.2]} 11. Rc1 {[%clk
0:03:00.6]} 11... Nbd7 {[%clk 0:02:44.9]} 12. Qd2 {[%clk 0:03:00.7]} 12... Qc7
{[%clk 0:02:35.7]} 13. Rfd1 {[%clk 0:03:00.8]} 13... Rac8 {[%clk 0:02:30.7]} 14.
Bf1 {[%clk 0:02:58.8]} 14... Ne5 {[%clk 0:02:18.7]} 15. b3 {[%clk 0:02:58.9]}
15... Qb8 {[%clk 0:02:05.5]} 16. Qf2 {[%clk 0:02:53]} 16... Nfd7 {[%clk
0:01:53.8]} 17. h3 {[%clk 0:02:44.9]} 17... Bd8 {[%clk 0:01:49.9]} 18. f4 {[%clk
0:02:41.1]} 18... Ng6 {[%clk 0:01:48.8]} 19. f5 {[%clk 0:02:34.8]} 19... Nge5
{[%clk 0:01:47.8]} 20. Qg3 {[%clk 0:02:17.3]} 20... Re8 {[%clk 0:01:35.9]} 21.
Bh6 {[%clk 0:02:01.1]} 21... Bf6 {[%clk 0:01:33.3]} 22. Kh1 {[%clk 0:01:27.8]}
22... Kh8 {[%clk 0:01:28.3]} 23. Bf4 {[%clk 0:01:26.1]} 23... Nc5 {[%clk
0:01:20.7]} 24. Nf3 {[%clk 0:00:50.2]} 24... Nxe4 {[%clk 0:01:06.3]} 25. Nxe4
{[%clk 0:00:50]} 25... Bxe4 {[%clk 0:01:03.8]} 26. fxe6 {[%clk 0:00:42]} 26...
fxe6 {[%clk 0:01:00.3]} 27. Nd4 {[%clk 0:00:24]} 27... Qb7 {[%clk 0:00:53.8]}
28. Re1 {[%clk 0:00:19.4]} 28... Ng6 {[%clk 0:00:48.4]} 29. Ne2 {[%clk
0:00:16.8]} 29... Bh4 {[%clk 0:00:40.8]} 30. Qe3 {[%clk 0:00:16.7]} 30... Bxe1
{[%clk 0:00:38.1]} 31. Rxe1 {[%clk 0:00:17.6]} 31... Nxf4 {[%clk 0:00:31.3]} 32.
Nxf4 {[%clk 0:00:17.3]} 32... d5 {[%clk 0:00:30.9]} 33. Qg3 {[%clk 0:00:13.7]}
33... Bf5 {[%clk 0:00:23.9]} 34. cxd5 {[%clk 0:00:11.5]} 34... exd5 {[%clk
0:00:23.5]} 35. Rd1 {[%clk 0:00:10]} 35... Rcd8 {[%clk 0:00:19.5]} 36. Be2
{[%clk 0:00:09.8]} 36... d4 {[%clk 0:00:18.2]} 37. Bf3 {[%clk 0:00:10.2]} 37...
Be4 {[%clk 0:00:16.9]} 38. Bh5 {[%clk 0:00:08.2]} 38... g6 {[%clk 0:00:15.5]}
39. Bg4 {[%clk 0:00:07.1]} 39... d3 {[%clk 0:00:14.7]} 40. Ne6 {[%clk
0:00:07.2]} 40... Rd5 {[%clk 0:00:11.2]} 41. Nf4 {[%clk 0:00:05.9]} 41... Rde5
{[%clk 0:00:09.7]} 42. Nxd3 {[%clk 0:00:05.4]} 42... Bxd3 {[%clk 0:00:08.9]} 43.
Qxd3 {[%clk 0:00:06.3]} 43... Qe7 {[%clk 0:00:07.3]} 44. Qd4 {[%clk 0:00:04.4]}
44... Qf6 {[%clk 0:00:05.9]} 45. Bf3 {[%clk 0:00:04.4]} 45... Re1+ {[%clk
0:00:05]} 46. Kh2 {[%clk 0:00:04.9]} 46... Qxd4 {[%clk 0:00:04.9]} 47. Rxd4
{[%clk 0:00:05.8]} 47... R8e7 {[%clk 0:00:04.9]} 48. Rd8+ {[%clk 0:00:05.7]}
48... Kg7 {[%clk 0:00:03.9]} 49. Ra8 {[%clk 0:00:06.6]} 49... a5 {[%clk
0:00:02.3]} 50. Rb8 {[%clk 0:00:07.2]} 50... R1e6 {[%clk 0:00:01.8]} 51. a4
{[%clk 0:00:07.6]} 51... Rf6 {[%clk 0:00:02]} 52. Bd5 {[%clk 0:00:07.9]} 52...
h5 {[%clk 0:00:01.8]} 53. Rg8+ {[%clk 0:00:07.8]} 53... Kh6 {[%clk 0:00:01.2]}
54. Bc4 {[%clk 0:00:08.7]} 1-0

[Event "*** SCC Grand Prix: Titled Tuesday Blitz"]
[Site "Chess.com"]
[Date "2020.09.29"]
[Round "6"]
[White "TigrVShlyape"]
[Black "ChessWarrior7197"]
[Result "1-0"]
[WhiteElo "2861"]
[BlackElo "2943"]
[TimeControl "180+1"]
[EndTime "11:06:22 PDT"]
[Termination "TigrVShlyape won by checkmate"]

1. d4 {[%clk 0:03:00.9]} 1... d5 {[%clk 0:02:59.9]} 2. Nf3 {[%clk 0:03:01.5]}
2... e6 {[%clk 0:03:00.2]} 3. Bf4 {[%clk 0:03:01.9]} 3... c5 {[%clk 0:02:59.9]}
4. e3 {[%clk 0:03:01.7]} 4... Nc6 {[%clk 0:03:00.3]} 5. c3 {[%clk 0:03:01.3]}
5... Nf6 {[%clk 0:03:00.7]} 6. Nbd2 {[%clk 0:03:01]} 6... Bd6 {[%clk 0:03:01.2]}
7. Bg3 {[%clk 0:03:00.9]} 7... O-O {[%clk 0:03:01.5]} 8. Bd3 {[%clk 0:03:01.4]}
8... b6 {[%clk 0:03:02]} 9. Qe2 {[%clk 0:03:01.8]} 9... Bb7 {[%clk 0:03:02.2]}
10. Rd1 {[%clk 0:03:02.4]} 10... Ne7 {[%clk 0:02:49]} 11. Ne5 {[%clk 0:02:58.3]}
11... Nf5 {[%clk 0:02:46.5]} 12. Bf4 {[%clk 0:02:58.4]} 12... Be7 {[%clk
0:02:28.7]} 13. g4 {[%clk 0:02:58.1]} 13... Nd6 {[%clk 0:02:29.2]} 14. g5 {[%clk
0:02:58.3]} 14... Nfe4 {[%clk 0:02:29.6]} 15. Rg1 {[%clk 0:02:58.6]} 15... f5
{[%clk 0:02:22]} 16. gxf6 {[%clk 0:02:53.2]} 16... Bxf6 {[%clk 0:02:20.5]} 17.
Qg4 {[%clk 0:02:42.3]} 17... Nf5 {[%clk 0:02:12.1]} 18. Nxe4 {[%clk 0:02:40]}
18... dxe4 {[%clk 0:02:12.2]} 19. Bc4 {[%clk 0:02:38.1]} 19... Bd5 {[%clk
0:01:06.8]} 20. dxc5 {[%clk 0:02:37.3]} 20... Bxe5 {[%clk 0:01:07.4]} 21. Bxe5
{[%clk 0:02:35.1]} 21... Rf7 {[%clk 0:01:02.8]} 22. c6 {[%clk 0:02:14.7]} 22...
Qc8 {[%clk 0:00:55.7]} 23. c7 {[%clk 0:01:20.4]} 23... Bxc4 {[%clk 0:00:47.2]}
24. Rd8+ {[%clk 0:01:19]} 24... Qxd8 {[%clk 0:00:47.8]} 25. cxd8=Q+ {[%clk
0:01:18.1]} 25... Rxd8 {[%clk 0:00:48.7]} 26. Qxe4 {[%clk 0:01:13.7]} 26... Bd5
{[%clk 0:00:49.2]} 27. Qg4 {[%clk 0:01:08.9]} 27... Rdd7 {[%clk 0:00:24.5]} 28.
e4 {[%clk 0:01:04.7]} 28... h5 {[%clk 0:00:25]} 29. Qe2 {[%clk 0:00:57.7]} 29...
Nh4 {[%clk 0:00:24.9]} 30. f4 {[%clk 0:00:55.3]} 30... Bc6 {[%clk 0:00:17.9]}
31. Qxh5 {[%clk 0:00:53.2]} 31... Bxe4 {[%clk 0:00:17.7]} 32. Qxh4 {[%clk
0:00:52.8]} 32... Rd3 {[%clk 0:00:17]} 33. Rg3 {[%clk 0:00:51.3]} 33... Rd5
{[%clk 0:00:16.1]} 34. Bd4 {[%clk 0:00:48.8]} 34... Bf5 {[%clk 0:00:14.2]} 35.
Rg5 {[%clk 0:00:44.9]} 35... Rc7 {[%clk 0:00:08]} 36. Rh5 {[%clk 0:00:44.6]}
36... Kf7 {[%clk 0:00:08.2]} 37. Qg3 {[%clk 0:00:41]} 37... Rxd4 {[%clk
0:00:07.7]} 38. cxd4 {[%clk 0:00:40.4]} 38... Rc1+ {[%clk 0:00:08.6]} 39. Kd2
{[%clk 0:00:40.3]} 39... Rc2+ {[%clk 0:00:08.8]} 40. Kd1 {[%clk 0:00:40.2]}
40... Rxb2 {[%clk 0:00:08.6]} 41. Qc3 {[%clk 0:00:33]} 41... Rxa2 {[%clk
0:00:06.3]} 42. Rh8 {[%clk 0:00:28]} 42... Rg2 {[%clk 0:00:04.3]} 43. Qc7+
{[%clk 0:00:26.1]} 43... Kg6 {[%clk 0:00:04.8]} 44. h4 {[%clk 0:00:24]} 44...
Bg4+ {[%clk 0:00:04.1]} 45. Ke1 {[%clk 0:00:23.6]} 45... Re2+ {[%clk 0:00:03]}
46. Kf1 {[%clk 0:00:23]} 46... Re4 {[%clk 0:00:03.9]} 47. Kf2 {[%clk 0:00:21.4]}
47... Bh5 {[%clk 0:00:02.3]} 48. Qc6 {[%clk 0:00:19.5]} 48... Re2+ {[%clk
0:00:02.5]} 49. Kf1 {[%clk 0:00:19.2]} 49... Re3 {[%clk 0:00:03.4]} 50. Qe8+
{[%clk 0:00:18.2]} 50... Kf6 {[%clk 0:00:03.9]} 51. Qxh5 {[%clk 0:00:17.1]}
51... Re4 {[%clk 0:00:04.8]} 52. Rf8+ {[%clk 0:00:15.4]} 52... Ke7 {[%clk
0:00:04.6]} 53. Qf7+ {[%clk 0:00:15.5]} 53... Kd6 {[%clk 0:00:05.5]} 54. Rd8+
{[%clk 0:00:15.1]} 54... Kc6 {[%clk 0:00:06.4]} 55. Qd7# {[%clk 0:00:15.3]} 1-0

[Event "*** SCC Grand Prix: Titled Tuesday Blitz"]
[Site "Chess.com"]
[Date "2020.09.29"]
[Round "6"]
[White "Bulldog167"]
[Black "kosya4ok"]
[Result "0-1"]
[WhiteElo "2789"]
[BlackElo "2607"]
[TimeControl "180+1"]
[EndTime "11:06:22 PDT"]
[Termination "kosya4ok won on time"]

1. d4 {[%clk 0:03:00.9]} 1... d5 {[%clk 0:02:57.4]} 2. c4 {[%clk 0:03:01.2]}
2... c6 {[%clk 0:02:56.9]} 3. cxd5 {[%clk 0:03:01.4]} 3... cxd5 {[%clk
0:02:56.3]} 4. Bf4 {[%clk 0:03:02]} 4... Nc6 {[%clk 0:02:55.5]} 5. e3 {[%clk
0:03:02.4]} 5... Nf6 {[%clk 0:02:54.1]} 6. Nc3 {[%clk 0:03:03]} 6... a6 {[%clk
0:02:54.1]} 7. Bd3 {[%clk 0:03:03.2]} 7... Bg4 {[%clk 0:02:47.4]} 8. Nge2 {[%clk
0:03:03.2]} 8... e6 {[%clk 0:02:46.4]} 9. O-O {[%clk 0:03:03.4]} 9... Bd6 {[%clk
0:02:43.3]} 10. f3 {[%clk 0:03:03.6]} 10... Bh5 {[%clk 0:02:42.8]} 11. Na4
{[%clk 0:03:04.1]} 11... Bg6 {[%clk 0:02:40.8]} 12. Nc5 {[%clk 0:03:03.9]} 12...
Bxc5 {[%clk 0:02:39.9]} 13. dxc5 {[%clk 0:03:04.8]} 13... e5 {[%clk 0:02:38.6]}
14. Bg5 {[%clk 0:03:03.8]} 14... Qe7 {[%clk 0:02:33.7]} 15. Rc1 {[%clk
0:02:58.3]} 15... Rd8 {[%clk 0:02:32.6]} 16. Ng3 {[%clk 0:02:33.7]} 16... h6
{[%clk 0:02:15.1]} 17. Bh4 {[%clk 0:02:25.3]} 17... Qe6 {[%clk 0:02:04.3]} 18.
Bxg6 {[%clk 0:02:02.1]} 18... fxg6 {[%clk 0:02:05.2]} 19. Bxf6 {[%clk
0:02:01.8]} 19... gxf6 {[%clk 0:02:04.5]} 20. Qb3 {[%clk 0:01:41.2]} 20... Rd7
{[%clk 0:01:55.5]} 21. e4 {[%clk 0:01:25.1]} 21... O-O {[%clk 0:01:53.5]} 22.
exd5 {[%clk 0:01:19.2]} 22... Qxd5 {[%clk 0:01:54.4]} 23. Qc2 {[%clk 0:01:12.7]}
23... f5 {[%clk 0:01:47.5]} 24. Rfd1 {[%clk 0:01:12.6]} 24... Nd4 {[%clk
0:01:47.5]} 25. Qa4 {[%clk 0:01:03.2]} 25... Rfd8 {[%clk 0:01:46.2]} 26. Kh1
{[%clk 0:01:03.1]} 26... Qc6 {[%clk 0:01:37.6]} 27. Qc4+ {[%clk 0:01:02.6]}
27... Kg7 {[%clk 0:01:36.9]} 28. b4 {[%clk 0:00:58.5]} 28... Nxf3 {[%clk
0:01:29.7]} 29. Rxd7+ {[%clk 0:00:56]} 29... Rxd7 {[%clk 0:01:30.6]} 30. Qe2
{[%clk 0:00:38.3]} 30... Nh4 {[%clk 0:01:01.9]} 31. Qxe5+ {[%clk 0:00:37.6]}
31... Kf7 {[%clk 0:01:00]} 32. Qe2 {[%clk 0:00:31.2]} 32... Qd5 {[%clk
0:00:37.8]} 33. Re1 {[%clk 0:00:28.7]} 33... Kg7 {[%clk 0:00:31.1]} 34. a3
{[%clk 0:00:19.7]} 34... Qd2 {[%clk 0:00:23.8]} 35. Qe5+ {[%clk 0:00:17.4]}
35... Kh7 {[%clk 0:00:24.3]} 36. Re2 {[%clk 0:00:10.9]} 36... Qd1+ {[%clk
0:00:15.3]} 37. Re1 {[%clk 0:00:11.2]} 37... Qd3 {[%clk 0:00:16.2]} 38. Qf4
{[%clk 0:00:06.6]} 38... g5 {[%clk 0:00:13.6]} 39. Qf2 {[%clk 0:00:05.1]} 39...
f4 {[%clk 0:00:11.5]} 40. Ne4 {[%clk 0:00:05.2]} 40... Kg6 {[%clk 0:00:10.4]}
41. Nd6 {[%clk 0:00:05]} 41... Nf5 {[%clk 0:00:06.7]} 42. Nxf5 {[%clk
0:00:02.6]} 42... Kxf5 {[%clk 0:00:06.4]} 43. h3 {[%clk 0:00:03.2]} 43... Qd2
{[%clk 0:00:04.7]} 44. Qf1 {[%clk 0:00:03.2]} 44... Rd3 {[%clk 0:00:04.4]} 45.
Re2 {[%clk 0:00:02.4]} 45... Qd1 {[%clk 0:00:04.2]} 46. Re1 {[%clk 0:00:03.1]}
46... Qd2 {[%clk 0:00:04.5]} 47. Qg1 {[%clk 0:00:01.8]} 47... Re3 {[%clk
0:00:04.1]} 48. Rf1 {[%clk 0:00:02.3]} 48... Qe2 {[%clk 0:00:03.2]} 0-1

[Event "*** SCC Grand Prix: Titled Tuesday Blitz"]
[Site "Chess.com"]
[Date "2020.09.29"]
[Round "6"]
[White "abykhovsky"]
[Black "blitzking1729"]
[Result "1-0"]
[WhiteElo "2736"]
[BlackElo "2544"]
[TimeControl "180+1"]
[EndTime "11:06:23 PDT"]
[Termination "abykhovsky won by checkmate"]

1. d4 {[%clk 0:03:00.9]} 1... d5 {[%clk 0:02:59]} 2. Nf3 {[%clk 0:03:00.4]} 2...
Nf6 {[%clk 0:02:58.2]} 3. c4 {[%clk 0:02:57.5]} 3... e6 {[%clk 0:02:57]} 4. Nc3
{[%clk 0:02:57.8]} 4... c5 {[%clk 0:02:56.4]} 5. cxd5 {[%clk 0:02:57.4]} 5...
exd5 {[%clk 0:02:57.3]} 6. Bg5 {[%clk 0:02:55.3]} 6... Nc6 {[%clk 0:02:54.6]} 7.
g3 {[%clk 0:02:36.4]} 7... cxd4 {[%clk 0:02:45.6]} 8. Nxd4 {[%clk 0:02:34.5]}
8... Bc5 {[%clk 0:02:44.9]} 9. e3 {[%clk 0:02:21.4]} 9... O-O {[%clk 0:02:39.5]}
10. Bg2 {[%clk 0:02:14.4]} 10... Nxd4 {[%clk 0:02:38.4]} 11. exd4 {[%clk
0:02:13.8]} 11... Re8+ {[%clk 0:02:37.7]} 12. Be3 {[%clk 0:02:06.7]} 12... Bb4
{[%clk 0:02:20.3]} 13. O-O {[%clk 0:02:05.5]} 13... Bxc3 {[%clk 0:02:09.6]} 14.
bxc3 {[%clk 0:02:04.7]} 14... Ne4 {[%clk 0:02:10]} 15. Rc1 {[%clk 0:02:01]}
15... Bf5 {[%clk 0:02:04.4]} 16. Qb3 {[%clk 0:01:48.9]} 16... b6 {[%clk
0:01:57.6]} 17. Rfe1 {[%clk 0:01:39.4]} 17... Rc8 {[%clk 0:01:56.4]} 18. Bf4
{[%clk 0:01:34.2]} 18... Qd7 {[%clk 0:01:46.6]} 19. Be5 {[%clk 0:01:28.1]} 19...
Kh8 {[%clk 0:01:33.8]} 20. f3 {[%clk 0:01:25]} 20... Nd2 {[%clk 0:01:32.8]} 21.
Qd1 {[%clk 0:01:16.9]} 21... Nc4 {[%clk 0:01:30.7]} 22. g4 {[%clk 0:01:15.9]}
22... Bg6 {[%clk 0:01:25.2]} 23. h4 {[%clk 0:01:06.4]} 23... f6 {[%clk
0:01:17.4]} 24. Bg3 {[%clk 0:01:06.1]} 24... Rxe1+ {[%clk 0:01:08]} 25. Qxe1
{[%clk 0:01:04.3]} 25... Re8 {[%clk 0:01:07.3]} 26. Qf2 {[%clk 0:01:03.9]} 26...
h5 {[%clk 0:01:03]} 27. Bh3 {[%clk 0:00:44.3]} 27... hxg4 {[%clk 0:01:01.7]} 28.
fxg4 {[%clk 0:00:44.2]} 28... Bd3 {[%clk 0:00:56.7]} 29. Re1 {[%clk 0:00:42.5]}
29... Re4 {[%clk 0:00:50.3]} 30. Kh2 {[%clk 0:00:40]} 30... Qe6 {[%clk
0:00:43.7]} 31. g5 {[%clk 0:00:36.7]} 31... Qe7 {[%clk 0:00:21.4]} 32. gxf6
{[%clk 0:00:32.7]} 32... Qxf6 {[%clk 0:00:20.5]} 33. Qxf6 {[%clk 0:00:12.2]}
33... gxf6 {[%clk 0:00:21.4]} 34. Bg2 {[%clk 0:00:12.3]} 34... Rxe1 {[%clk
0:00:19.4]} 35. Bxe1 {[%clk 0:00:13.2]} 35... Be4 {[%clk 0:00:19.8]} 36. Kg3
{[%clk 0:00:13]} 36... Kg7 {[%clk 0:00:17.9]} 37. Bh3 {[%clk 0:00:13.2]} 37...
f5 {[%clk 0:00:17.9]} 38. Kf4 {[%clk 0:00:13.3]} 38... Kf6 {[%clk 0:00:17.9]}
39. h5 {[%clk 0:00:13.6]} 39... Nb2 {[%clk 0:00:18.1]} 40. Bh4+ {[%clk
0:00:13.4]} 40... Ke6 {[%clk 0:00:15.8]} 41. h6 {[%clk 0:00:13.7]} 41... Nd3+
{[%clk 0:00:16.1]} 42. Kg5 {[%clk 0:00:14.2]} 42... Kf7 {[%clk 0:00:16.4]} 43.
Bxf5 {[%clk 0:00:14]} 43... Bxf5 {[%clk 0:00:16.3]} 44. Kxf5 {[%clk 0:00:14.9]}
44... Nc1 {[%clk 0:00:14.7]} 45. Bf6 {[%clk 0:00:14.1]} 45... Ne2 {[%clk
0:00:10.7]} 46. h7 {[%clk 0:00:14.3]} 46... Ng3+ {[%clk 0:00:10.7]} 47. Kg4
{[%clk 0:00:14.3]} 47... Ne4 {[%clk 0:00:09.2]} 48. h8=Q {[%clk 0:00:14.2]}
48... Nxf6+ {[%clk 0:00:09.6]} 49. Kf5 {[%clk 0:00:13.9]} 49... Ne4 {[%clk
0:00:09.5]} 50. Qh7+ {[%clk 0:00:13.7]} 50... Ke8 {[%clk 0:00:08.5]} 51. Qg8+
{[%clk 0:00:10.4]} 51... Ke7 {[%clk 0:00:07.7]} 52. Qe6+ {[%clk 0:00:10.4]}
52... Kf8 {[%clk 0:00:05.3]} 53. Kg6 {[%clk 0:00:10.5]} 53... Ng5 {[%clk
0:00:02.4]} 54. Kxg5 {[%clk 0:00:10.8]} 54... b5 {[%clk 0:00:02]} 55. Kf6 {[%clk
0:00:08.8]} 55... b4 {[%clk 0:00:01.3]} 56. Qf7# {[%clk 0:00:09.7]} 1-0